fUSD/lending_fUSD_20260406
["ID","MTS","AMOUNT","RATE_DAILY","PERIOD"]
[419883061,1775465441283,-169.62572437,0.00013473,2]
[419883062,1775465441293,-500.0,0.00013473,2]
[419883063,1775465441303,-500.0,0.00013473,2]
[419883064,1775465441313,-500.0,0.00013473,2]
[419883065,1775465441322,-1000.0,0.00013608,2]
[419883066,1775465441332,-2104.32959808,0.0001369,2]
[419883067,1775465441342,-600.0,0.00013697,2]
[419883068,1775465441352,-500.0,0.00013698,2]
[419883069,1775465441362,-500.0,0.00013698,2]
[419883070,1775465441371,-500.0,0.00013698,2]
[419883071,1775465441380,-500.0,0.00013698,2]
[419883072,1775465441390,-500.0,0.00013698,2]
[419883073,1775465441400,-500.0,0.00013698,2]
[419883074,1775465441410,-500.0,0.00013698,2]
[419883075,1775465441419,-500.0,0.00013698,2]
[419883076,1775465441429,-500.0,0.00013698,2]
[419883077,1775465441438,-500.0,0.00013698,2]
[419883078,1775465441449,-500.0,0.00013698,2]
[419883079,1775465441458,-151.0,0.00013698,2]
[419883080,1775465441468,-151.0,0.00013698,2]
[419883081,1775465441477,-151.0,0.00013698,2]
[419883082,1775465441487,-151.0,0.00013698,2]
[419883083,1775465441497,-151.0,0.00013698,2]
[419883084,1775465441506,-151.0,0.00013698,2]
[419883085,1775465441516,-151.0,0.00013698,2]
[419883086,1775465441525,-151.0,0.00013698,2]
[419883087,1775465441535,-151.0,0.00013698,2]
[419883088,1775465441544,-151.0,0.00013698,2]
[419883089,1775465441554,-151.0,0.00013698,2]
[419883090,1775465441563,-300.0,0.00013698,2]
[419883091,1775465441573,-500.0,0.00013698,2]
[419883092,1775465441582,-157.0,0.00013698,3]
[419883093,1775465441592,-157.0,0.00013698,3]
[419883094,1775465441602,-500.0,0.00013698,2]
[419883095,1775465441612,-600.0,0.00013698,2]
[419883096,1775465441621,-1387.34,0.00013699,2]
[419883097,1775465441630,-300.0,0.00013741,2]
[419883098,1775465441640,-600.0,0.00013789,2]
[419883099,1775465441650,-150.0,0.000138,2]
[419883100,1775465441660,-3000.0,0.00013808,2]
[419883101,1775465441670,-390.0,0.00013815,2]
[419883102,1775465441680,-300.0,0.0001382,2]
[419883103,1775465441690,-300.0,0.0001382,2]
[419883104,1775465441699,-300.0,0.0001382,2]
[419883105,1775465441709,-300.0,0.0001382,2]
[419883106,1775465441718,-2500.0,0.0001382,2]
[419883107,1775465441728,-2500.0,0.0001382,2]
[419883108,1775465441737,-2500.0,0.0001382,2]
[419883109,1775465441748,-2500.0,0.0001382,2]
[419883110,1775465441758,-152.0,0.0001383,3]
[419883111,1775465441768,-1771.0,0.00013842,2]
[419883112,1775465441777,-247.0,0.00013845,2]
[419883113,1775465441787,-297.0,0.00013872,2]
[419883114,1775465441797,-287.14623761,0.000139,2]
[419883115,1775465441807,-1627.0,0.00013925,2]
[419883116,1775465441817,-977.0,0.00013953,2]
[419883117,1775465441827,-500.0,0.00013972,2]
[419883118,1775465442284,-239.0,0.0001398,2]
[419883119,1775465442294,-1000.0,0.00014021,2]
[419883120,1775465442304,-502.16924089,0.00014021,2]
[419883121,1775465442314,-500.0,0.00014021,2]
[419883122,1775465442324,-169.43642566,0.00014021,2]
[419883123,1775465442334,-2104.32959808,0.00014059,2]
[419883124,1775465442344,-150.0,0.00014076,2]
[419883125,1775465442353,-267.591609,0.00014078,2]
[419883126,1775465442363,-1500.0,0.00014082,2]
[419883127,1775465442372,-1209.06,0.00014226,2]
[419883128,1775465442382,-160.0,0.00014251,2]
[419883129,1775465442393,-1116.0,0.00014289,2]
[419883130,1775465442403,-162.0,0.000144,2]
[419883131,1775465442413,-162.0,0.000144,2]
[419883132,1775465442423,-1035.6739728,0.00014423,2]
[419883133,1775465442434,-2104.32959808,0.00014427,2]
[419883134,1775465442444,-440.0,0.00014465,2]
[419883135,1775465442454,-970.0,0.00014494,2]
[419883136,1775465442463,-255.0,0.00014535,2]
[419883137,1775465442473,-1009.60812882,0.00014568,2]
[419883138,1775465442483,-600.0,0.000146,5]
[419883139,1775465442493,-200.0,0.000146,5]
[419883140,1775465442503,-5000.0,0.00014654,2]
[419883141,1775465442513,-218.8668,0.00014665,2]
[419883142,1775465442522,-5000.0,0.00014665,2]
[419883143,1775465442532,-4202.79219353,0.00014665,2]
[419883144,1775465442541,-596.65428267,0.00014665,2]
[419883145,1775465442551,-198.48074007,0.00014665,2]
[419883146,1775465442560,-10257.51294978,0.00014665,2]
[419883147,1775465442570,-234.96349068,0.00014665,2]
[419883148,1775465442580,-8888.42066245,0.00014665,2]
[419883149,1775465442589,-1300.0,0.000147,5]
[419883150,1775465442599,-400.0,0.000147,5]
[419883151,1775465442609,-152.0,0.00014729,4]
[419883152,1775465442618,-388.37325951,0.00014755,2]
[419883153,1775465442628,-151.0,0.00014762,2]
[419883154,1775465442638,-1680.0,0.00014762,2]
[419883155,1775465442647,-500.0,0.00014764,2]
[419883156,1775465442657,-500.0,0.00014764,2]
[419883157,1775465442667,-500.0,0.00014764,2]
[419883158,1775465442676,-500.0,0.00014764,2]
[419883159,1775465442685,-500.0,0.00014764,2]
[419883160,1775465442694,-397.77015442,0.00014764,2]
[419883161,1775465442704,-500.0,0.00014764,2]
[419883162,1775465442714,-500.0,0.00014764,2]
[419883163,1775465442724,-1120.71704076,0.00014764,2]
[419883164,1775465442733,-500.0,0.00014764,2]
[419883165,1775465442743,-500.0,0.00014764,2]
[419883166,1775465442752,-500.0,0.00014764,2]
[419883167,1775465442762,-500.0,0.00014764,2]
[419883168,1775465442771,-1120.71704076,0.00014764,2]
[419883169,1775465442781,-500.0,0.00014764,2]
[419883170,1775465442790,-533.36103957,0.00014764,2]
[419883171,1775465442799,-500.0,0.00014764,2]
[419883172,1775465442809,-501.86070028,0.00014764,2]
[419883173,1775465442818,-1120.71704076,0.00014764,2]
[419883174,1775465442827,-500.0,0.00014764,2]
[419883175,1775465442837,-1120.71704076,0.00014764,2]
[419883176,1775465442847,-500.0,0.00014764,2]
[419883177,1775465442857,-500.0,0.00014764,2]
[419883178,1775465442867,-500.0,0.00014764,2]
[419883179,1775465442876,-1120.71704076,0.00014764,2]
[419883180,1775465442886,-500.0,0.00014764,2]
[419883181,1775465442895,-495.96716556,0.00014764,2]
[419883182,1775465442905,-1120.71704076,0.00014764,2]
[419883183,1775465442914,-500.0,0.00014764,2]
[419883184,1775465442924,-1120.71704076,0.00014764,2]
[419883185,1775465442933,-316.47815189,0.00014764,2]
[419883186,1775465442942,-500.0,0.00014764,2]
[419883187,1775465442952,-1120.71704076,0.00014764,2]
[419883188,1775465442963,-1120.71704076,0.00014764,2]
[419883189,1775465442973,-500.0,0.00014764,2]
[419883191,1775465442983,-500.0,0.00014764,2]
[419883193,1775465442993,-1120.71704076,0.00014764,2]
[419883194,1775465443003,-1120.71704076,0.00014764,2]
[419883195,1775465443013,-1120.71704076,0.00014764,2]
[419883196,1775465443023,-500.0,0.00014764,2]
[419883197,1775465443033,-1120.71704076,0.00014764,2]
[419883198,1775465443044,-500.0,0.00014764,2]
[419883199,1775465443054,-1120.71704076,0.00014764,2]
[419883200,1775465443064,-500.0,0.00014764,2]
[419883201,1775465443074,-500.0,0.00014764,2]
[419883202,1775465443084,-1120.71704076,0.00014764,2]
[419883203,1775465443094,-1120.71704076,0.00014764,2]
[419883204,1775465443105,-500.0,0.00014764,2]
[419883205,1775465443115,-1120.71704076,0.00014764,2]
[419883206,1775465443125,-1120.71704076,0.00014764,2]
[419883207,1775465443135,-500.0,0.00014764,2]
[419883208,1775465443145,-1120.71704076,0.00014764,2]
[419883209,1775465443154,-1120.71704076,0.00014764,2]
[419883211,1775465443164,-500.0,0.00014764,2]
[419883214,1775465443174,-1120.71704076,0.00014764,2]
[419883216,1775465443184,-1120.71704076,0.00014764,2]
[419883217,1775465443194,-500.0,0.00014764,2]
[419883218,1775465443205,-1120.71704076,0.00014764,2]
[419883219,1775465443215,-500.0,0.00014764,2]
[419883220,1775465443224,-1120.71704076,0.00014764,2]
[419883221,1775465443234,-500.0,0.00014764,2]
[419883222,1775465443244,-1120.71704076,0.00014764,2]
[419883223,1775465443254,-500.0,0.00014764,2]
[419883224,1775465443263,-500.0,0.00014764,2]
[419883225,1775465443273,-268.6164896,0.00014764,2]
[419883226,1775465443283,-500.0,0.00014764,2]
[419883227,1775465443295,-500.0,0.00014764,2]
[419883228,1775465443305,-500.0,0.00014764,2]
[419883229,1775465443315,-500.0,0.00014764,2]
[419883230,1775465443325,-1120.71704076,0.00014764,2]
[419883231,1775465443335,-1120.71704076,0.00014764,2]
[419883232,1775465443344,-1120.71704076,0.00014764,2]
[419883233,1775465443355,-1120.71704076,0.00014764,2]
[419883234,1775465443364,-1120.71704076,0.00014764,2]
[419883235,1775465443374,-1120.71704076,0.00014764,2]
[419883236,1775465443384,-1120.71704076,0.00014764,2]
[419883237,1775465443393,-1120.71704076,0.00014764,2]
[419883238,1775465443403,-1120.71704076,0.00014764,2]
[419883239,1775465443414,-1120.71704076,0.00014764,2]
[419883240,1775465443423,-1120.71704076,0.00014764,2]
[419883241,1775465443433,-1120.71704076,0.00014764,2]
[419883242,1775465443443,-1120.71704076,0.00014764,2]
[419883243,1775465443453,-1120.71704076,0.00014764,2]
[419883244,1775465443463,-1120.71704076,0.00014764,2]
[419883245,1775465443473,-1120.71704076,0.00014764,2]
[419883246,1775465443483,-1120.71704076,0.00014764,2]
[419883247,1775465443493,-1120.71704076,0.00014764,2]
[419883248,1775465443502,-1120.71704076,0.00014764,2]
[419883249,1775465443513,-1120.71704076,0.00014764,2]
[419883250,1775465443523,-1120.71704076,0.00014764,2]
[419883251,1775465443532,-1120.71704076,0.00014764,2]
[419883252,1775465443542,-1120.71704076,0.00014764,2]
[419883253,1775465443552,-1120.71704076,0.00014764,2]
[419883254,1775465443562,-1120.71704076,0.00014764,2]
[419883255,1775465443572,-1120.71704076,0.00014764,2]
[419883256,1775465443582,-1114.81853003,0.00014764,2]
[419883257,1775465443592,-1114.81853003,0.00014764,2]
[419883258,1775465443601,-1114.81853003,0.00014764,2]
[419883259,1775465443611,-1114.81853003,0.00014764,2]
[419883260,1775465443621,-1114.81853003,0.00014764,2]
[419883261,1775465443631,-1114.81853003,0.00014764,2]
[419883262,1775465443640,-1114.81853003,0.00014764,2]
[419883263,1775465443650,-1114.81853003,0.00014764,2]
[419883264,1775465443661,-1114.81853003,0.00014764,2]
[419883265,1775465443671,-1114.81853003,0.00014764,2]
[419883266,1775465443681,-1114.81853003,0.00014764,2]
[419883267,1775465443691,-1114.81853003,0.00014764,2]
[419883268,1775465443700,-1114.81853003,0.00014764,2]
[419883269,1775465443710,-1114.81853003,0.00014764,2]
[419883270,1775465443720,-1114.81853003,0.00014764,2]
[419883271,1775465443731,-1114.81853003,0.00014764,2]
[419883272,1775465443740,-1114.81853003,0.00014764,2]
[419883273,1775465443750,-1114.81853003,0.00014764,2]
[419883274,1775465443761,-1114.81853003,0.00014764,2]
[419883275,1775465443771,-1114.81853003,0.00014764,2]
[419883276,1775465443781,-1114.81853003,0.00014764,2]
[419883277,1775465443790,-1114.81853003,0.00014764,2]
[419883278,1775465443800,-1114.81853003,0.00014764,2]
[419883279,1775465443810,-1114.81853003,0.00014764,2]
[419883280,1775465443820,-1114.81853003,0.00014764,2]
[419883281,1775465443831,-1114.81853003,0.00014764,2]
[419883282,1775465443841,-1114.81853003,0.00014764,2]
[419883283,1775465443851,-1114.81853003,0.00014764,2]
[419883284,1775465443860,-1114.81853003,0.00014764,2]
[419883285,1775465443870,-1114.81853003,0.00014764,2]
[419883286,1775465443880,-1114.81853003,0.00014764,2]
[419883287,1775465443890,-1114.81853002,0.00014764,2]
[419883288,1775465443900,-1114.81853002,0.00014764,2]
[419883290,1775465443910,-1114.81853002,0.00014764,2]
[419883292,1775465443920,-1114.81853002,0.00014764,2]
[419883294,1775465443929,-1114.81853002,0.00014764,2]
[419883296,1775465443940,-1114.81853002,0.00014764,2]
[419883298,1775465443950,-1114.81853001,0.00014764,2]
[419883299,1775465443959,-206.49,0.00014764,2]
[419883301,1775465443969,-741602.0854,0.00014765,2]
[419883303,1775465443980,-273127.35332555,0.00014765,2]
[419883306,1775465443996,-714.30901214,0.00014765,2]
[419883312,1775465444230,-445135.5290076,0.00014765,2]
[419883313,1775465444261,-3549.4941997,0.00014765,2]
[419883314,1775465444280,-7464.80342362,0.00014765,2]
[419883315,1775465444320,-105984.10662943,0.00014765,2]
[419883316,1775465444400,-3319.34564539,0.00014765,2]
[419883317,1775465444412,-8107.74869106,0.00014765,2]
[419883318,1775465444435,-1741.12838713,0.00014765,2]
[419883319,1775465444649,-853.86032702,0.00014765,2]
[419883320,1775465444666,-3302.55053612,0.00014765,2]
[419883321,1775465444677,-6748.47214036,0.00014765,2]
[419883322,1775465444771,-3939.183122,0.00014765,2]
[419883328,1775465447962,-46263.8428294,0.00014765,2]
[419884998,1775466529242,685.22434225,0.000105,30]
[419885011,1775466632426,-261.65363807,0.000101,2]
[419885012,1775466632437,-296.0,0.000101,2]
[419885013,1775466632449,-1446.94550107,0.000107,2]
[419885014,1775466632461,-16121.05247707,0.000107,2]
[419885033,1775466639076,-5738.51500384,0.000107,2]
[419885038,1775466639116,-539.93551002,0.000107,2]
[419885040,1775466639127,-257.22580006,0.000107,2]
[419885042,1775466639141,-7906.75379404,0.000107,2]
[419885045,1775466639152,-825.26934686,0.000107,2]
[419885048,1775466639168,-993.34152341,0.000107,2]
[419885052,1775466639179,-542.47810034,0.000107,2]
[419885099,1775466639604,-6597.76401819,0.000107,2]
[419885110,1775466640670,-482.79510806,0.000107,2]
[419885111,1775466640716,-61476.35902467,0.000107,2]
[419885112,1775466640726,-5000.0,0.0001111,2]
[419885113,1775466640736,-600.0,0.0001111,2]
[419885114,1775466640745,-300.0,0.0001111,2]
[419885115,1775466640755,-600.0,0.0001157,2]
[419885116,1775466640764,-600.0,0.0001157,2]
[419885117,1775466640775,-600.0,0.0001157,2]
[419885118,1775466640784,-600.0,0.0001157,2]
[419885119,1775466640794,-300.0,0.0001157,2]
[419885120,1775466640804,-1706.6,0.0001201,2]
[419885121,1775466640814,-200.0,0.00012315,2]
[419885122,1775466640824,-1200.0,0.00012506,2]
[419885123,1775466640834,-1000.0,0.000126,4]
[419885124,1775466640844,-1536.51,0.000127,2]
[419885125,1775466640854,-2000.0,0.000127,4]
[419885126,1775466640864,-163.16,0.00012727,2]
[419885127,1775466640874,-9109.65,0.00012732,2]
[419885128,1775466640884,-903.0,0.00012755,2]
[419885129,1775466640893,-150.0,0.00012799,2]
[419885130,1775466640902,-9999.99,0.000128,2]
[419885131,1775466640911,-9999.99,0.000128,2]
[419885132,1775466640922,-19999.99,0.000128,2]
[419885133,1775466640931,-999.99,0.000128,2]
[419885134,1775466640941,-299.99,0.000128,2]
[419885135,1775466640950,-9999.99,0.000128,2]
[419885136,1775466640960,-150.99,0.000128,2]
[419885137,1775466640969,-9531.12,0.000128,2]
[419885138,1775466640978,-150.99,0.000128,2]
[419885139,1775466640988,-3000.0,0.000128,4]
[419885140,1775466640997,-310.93,0.0001288,2]
[419885141,1775466641007,-4000.0,0.000129,4]
[419885142,1775466641017,-547.0,0.00012906,2]
[419885143,1775466641027,-844.0,0.00012978,2]
[419885144,1775466641036,-219.0,0.00012978,2]
[419885145,1775466641045,-460.0,0.00013004,2]
[419885146,1775466641055,-218.8668,0.00013011,2]
[419885147,1775466641065,-500.0,0.000131,2]
[419885148,1775466641074,-228.0,0.00013111,2]
[419885149,1775466641084,-21463.24847826,0.00013111,2]
[419885150,1775466641093,-13302.38832182,0.00013113,2]
[419885151,1775466641103,-1165.718,0.0001312,2]
[419885152,1775466641112,-182.16741077,0.0001312,2]
[419885153,1775466641121,-153.6586429,0.00013121,2]
[419885154,1775466641131,-1000.0,0.00013121,2]
[419885155,1775466641141,-19320.63516895,0.00013138,2]
[419885156,1775466641151,-1841.28839832,0.00013138,2]
[419885157,1775466641160,-500.0,0.00013138,2]
[419885158,1775466641170,-150.0,0.000132,2]
[419885159,1775466641181,-388.37325951,0.00013211,2]
[419885160,1775466641191,-500.0,0.00013213,2]
[419885161,1775466641201,-500.0,0.00013213,2]
[419885162,1775466641210,-500.0,0.00013213,2]
[419885163,1775466641220,-500.0,0.00013213,2]
[419885164,1775466641230,-500.0,0.00013213,2]
[419885165,1775466641239,-500.0,0.00013213,2]
[419885166,1775466641249,-500.0,0.00013213,2]
[419885167,1775466641258,-500.0,0.00013213,2]
[419885168,1775466641268,-500.0,0.00013213,2]
[419885169,1775466641278,-500.0,0.00013213,2]
[419885170,1775466641288,-218.50620964,0.00013213,2]
[419885171,1775466641298,-500.0,0.00013213,2]
[419885172,1775466641307,-500.0,0.00013213,2]
[419885173,1775466641317,-200.0,0.00013213,2]
[419885174,1775466641327,-500.0,0.00013213,2]
[419885175,1775466641336,-151.0,0.00013213,2]
[419885176,1775466641346,-151.0,0.00013213,2]
[419885177,1775466641356,-151.0,0.00013213,2]
[419885178,1775466641366,-151.0,0.00013213,2]
[419885179,1775466641375,-151.0,0.00013213,2]
[419885180,1775466641385,-500.0,0.00013213,2]
[419885181,1775466641395,-162.6917032,0.00013213,2]
[419885182,1775466641405,-151.0,0.00013213,2]
[419885183,1775466641415,-500.0,0.00013213,2]
[419885184,1775466641426,-151.0,0.00013213,2]
[419885185,1775466641436,-500.0,0.00013213,2]
[419885186,1775466641446,-151.0,0.00013213,2]
[419885187,1775466641456,-500.0,0.00013213,2]
[419885188,1775466641466,-151.0,0.00013213,2]
[419885189,1775466641476,-500.0,0.00013213,2]
[419885190,1775466641486,-151.0,0.00013213,2]
[419885191,1775466641495,-574.08160509,0.00013213,2]
[419885192,1775466641505,-151.0,0.00013213,2]
[419885193,1775466641514,-151.0,0.00013213,2]
[419885194,1775466641524,-151.0,0.00013213,2]
[419885195,1775466641534,-151.0,0.00013213,2]
[419885196,1775466641544,-151.0,0.00013213,2]
[419885197,1775466641554,-151.0,0.00013213,2]
[419885198,1775466641563,-151.0,0.00013213,2]
[419885199,1775466641573,-151.0,0.00013213,2]
[419885200,1775466641582,-151.0,0.00013218,2]
[419885201,1775466641592,-161.604585,0.00013218,2]
[419885202,1775466641601,-161.604585,0.00013218,2]
[419885203,1775466641610,-1127.66474098,0.0001322,2]
[419885204,1775466641620,-1127.66474098,0.0001322,2]
[419885205,1775466641630,-1127.66474098,0.0001322,2]
[419885206,1775466641639,-1127.66474098,0.0001322,2]
[419885207,1775466641649,-1127.66474098,0.0001322,2]
[419885208,1775466641658,-1127.66474098,0.0001322,2]
[419885209,1775466641668,-1127.66474098,0.0001322,2]
[419885210,1775466641678,-1127.66474098,0.0001322,2]
[419885211,1775466641688,-1127.66474098,0.0001322,2]
[419885212,1775466641698,-1127.66474098,0.0001322,2]
[419885213,1775466641707,-1127.66474098,0.0001322,2]
[419885214,1775466641717,-1127.66474098,0.0001322,2]
[419885215,1775466641727,-1127.66474098,0.0001322,2]
[419885216,1775466641737,-1127.66474098,0.0001322,2]
[419885217,1775466641746,-1127.66474098,0.0001322,2]
[419885218,1775466641755,-1127.66474098,0.0001322,2]
[419885219,1775466641765,-1127.66474098,0.0001322,2]
[419885220,1775466641774,-1127.66474098,0.0001322,2]
[419885221,1775466641784,-1127.66474098,0.0001322,2]
[419885222,1775466641794,-1127.66474098,0.0001322,2]
[419885223,1775466641803,-1127.66474098,0.0001322,2]
[419885224,1775466641813,-1127.66474098,0.0001322,2]
[419885225,1775466641822,-1127.66474098,0.0001322,2]
[419885226,1775466641833,-1127.66474098,0.0001322,2]
[419885227,1775466641842,-1127.66474098,0.0001322,2]
[419885228,1775466641852,-1127.66474098,0.0001322,2]
[419885229,1775466641861,-1127.66474098,0.0001322,2]
[419885230,1775466641871,-1127.66474098,0.0001322,2]
[419885231,1775466641880,-1127.66474098,0.0001322,2]
[419885232,1775466641890,-1127.66474098,0.0001322,2]
[419885233,1775466641900,-1127.66474098,0.0001322,2]
[419885234,1775466641909,-1127.66474098,0.0001322,2]
[419885235,1775466641919,-1127.66474098,0.0001322,2]
[419885236,1775466641929,-1127.66474098,0.0001322,2]
[419885237,1775466641939,-1127.66474098,0.0001322,2]
[419885238,1775466641948,-1127.66474098,0.0001322,2]
[419885239,1775466641958,-1127.66474098,0.0001322,2]
[419885240,1775466641968,-1127.66474098,0.0001322,2]
[419885241,1775466641978,-1127.66474098,0.0001322,2]
[419885242,1775466641987,-1127.66474098,0.0001322,2]
[419885243,1775466641998,-1127.66474098,0.0001322,2]
[419885244,1775466642008,-1127.66474098,0.0001322,2]
[419885245,1775466642019,-1127.66474098,0.0001322,2]
[419885246,1775466642029,-1127.66474098,0.0001322,2]
[419885247,1775466642039,-1127.66474098,0.0001322,2]
[419885248,1775466642048,-1127.66474098,0.0001322,2]
[419885249,1775466642058,-1127.66474098,0.0001322,2]
[419885250,1775466642067,-1127.66474098,0.0001322,2]
[419885251,1775466642077,-1127.66474098,0.0001322,2]
[419885252,1775466642087,-501.86070028,0.0001322,2]
[419885253,1775466642096,-1121.7296634,0.0001322,2]
[419885254,1775466642106,-1121.7296634,0.0001322,2]
[419885255,1775466642115,-1121.7296634,0.0001322,2]
[419885256,1775466642125,-1121.7296634,0.0001322,2]
[419885257,1775466642134,-1121.7296634,0.0001322,2]
[419885258,1775466642144,-1121.7296634,0.0001322,2]
[419885259,1775466642154,-1121.7296634,0.0001322,2]
[419885260,1775466642163,-1121.7296634,0.0001322,2]
[419885261,1775466642172,-1121.7296634,0.0001322,2]
[419885262,1775466642182,-1121.7296634,0.0001322,2]
[419885263,1775466642191,-1121.7296634,0.0001322,2]
[419885264,1775466642200,-1121.7296634,0.0001322,2]
[419885265,1775466642210,-1121.7296634,0.0001322,2]
[419885266,1775466642219,-1121.7296634,0.0001322,2]
[419885267,1775466642229,-1121.7296634,0.0001322,2]
[419885268,1775466642238,-1121.7296634,0.0001322,2]
[419885269,1775466642248,-1121.7296634,0.0001322,2]
[419885270,1775466642258,-1121.7296634,0.0001322,2]
[419885271,1775466642267,-1121.7296634,0.0001322,2]
[419885272,1775466642277,-1121.7296634,0.0001322,2]
[419885273,1775466642287,-1121.7296634,0.0001322,2]
[419885274,1775466642297,-1121.7296634,0.0001322,2]
[419885275,1775466642306,-1121.7296634,0.0001322,2]
[419885276,1775466642316,-1121.7296634,0.0001322,2]
[419885277,1775466642326,-1121.7296634,0.0001322,2]
[419885278,1775466642335,-1121.7296634,0.0001322,2]
[419885279,1775466642344,-1121.7296634,0.0001322,2]
[419885280,1775466642354,-1121.7296634,0.0001322,2]
[419885281,1775466642363,-1121.7296634,0.0001322,2]
[419885282,1775466642373,-1121.7296634,0.0001322,2]
[419885283,1775466642383,-500.0,0.0001322,2]
[419885284,1775466642393,-500.0,0.0001322,2]
[419885285,1775466642403,-500.0,0.0001322,2]
[419885286,1775466642414,-500.0,0.0001322,2]
[419885287,1775466642426,-500.0,0.0001322,2]
[419885288,1775466642436,-495.96716556,0.0001322,2]
[419885289,1775466642448,-500.0,0.0001322,2]
[419885290,1775466642459,-500.0,0.0001322,2]
[419885291,1775466642470,-500.0,0.0001322,2]
[419885292,1775466642484,-500.0,0.0001322,2]
[419885293,1775466642495,-500.0,0.0001322,2]
[419885294,1775466642506,-268.6164896,0.0001322,2]
[419885295,1775466642517,-1121.7296634,0.0001322,2]
[419885296,1775466642528,-1281.97675814,0.0001322,2]
[419885297,1775466642539,-1281.97675814,0.0001322,2]
[419885298,1775466642550,-500.0,0.0001322,2]
[419885299,1775466642560,-500.0,0.0001322,2]
[419885300,1775466642570,-1281.97675814,0.0001322,2]
[419885301,1775466642581,-1281.97675814,0.0001322,2]
[419885302,1775466642592,-397.77015442,0.0001322,2]
[419885303,1775466642603,-1281.97675814,0.0001322,2]
[419885304,1775466642614,-1281.97675814,0.0001322,2]
[419885305,1775466642624,-160.24709477,0.0001322,2]
[419885306,1775466642634,-500.0,0.0001322,2]
[419885307,1775466642644,-500.0,0.0001322,2]
[419885308,1775466642654,-500.0,0.0001322,2]
[419885309,1775466642665,-500.0,0.0001322,2]
[419885310,1775466642679,-500.0,0.0001322,2]
[419885311,1775466642690,-500.0,0.0001322,2]
[419885312,1775466642700,-500.0,0.0001322,2]
[419885313,1775466642711,-500.0,0.0001322,2]
[419885314,1775466642720,-500.0,0.0001322,2]
[419885315,1775466642730,-500.0,0.0001322,2]
[419885316,1775466642740,-500.0,0.0001322,2]
[419885317,1775466642749,-500.0,0.0001322,2]
[419885318,1775466642759,-500.0,0.0001322,2]
[419885319,1775466642768,-500.0,0.0001322,2]
[419885320,1775466642778,-500.0,0.0001322,2]
[419885321,1775466642788,-316.47815189,0.0001322,2]
[419885322,1775466642798,-500.0,0.0001322,2]
[419885323,1775466642807,-500.0,0.0001322,2]
[419885324,1775466642817,-500.0,0.0001322,2]
[419885325,1775466642827,-500.0,0.0001322,2]
[419885326,1775466642838,-500.0,0.0001322,2]
[419885327,1775466642847,-500.0,0.0001322,2]
[419885328,1775466642857,-500.0,0.0001322,2]
[419885329,1775466642866,-500.0,0.0001322,2]
[419885330,1775466642875,-500.0,0.0001322,2]
[419885331,1775466642888,-1500000.0,0.00013221,2]
[419885332,1775466642898,-271.0,0.00013238,2]
[419885333,1775466642907,-500.95520336,0.00013273,2]
[419885334,1775466642916,-235.44785124,0.00013273,2]
[419885335,1775466642929,-500.0,0.00013273,2]
[419885336,1775466642939,-500.0,0.00013273,2]
[419885337,1775466642948,-500.0,0.00013273,2]
[419885338,1775466642957,-501.14326486,0.00013273,2]
[419885339,1775466642967,-500.0,0.00013273,2]
[419885340,1775466642976,-500.0,0.00013273,2]
[419885341,1775466642986,-341.21474486,0.00013273,2]
[419885342,1775466642996,-461.10773956,0.00013273,2]
[419885343,1775466643005,-500.0,0.00013273,2]
[419885344,1775466643015,-169.62572437,0.00013273,2]
[419885345,1775466643025,-503.24856611,0.00013273,2]
[419885346,1775466643035,-500.0,0.00013273,2]
[419885347,1775466643045,-309149.20251154,0.00013321,2]
[419885348,1775466643187,-2852.19657638,0.00013321,2]
[419885352,1775466643309,-4926.23470969,0.00013321,2]
[419885353,1775466643333,-418.82489194,0.00013321,2]
[419885356,1775466643887,-2112.68772881,0.00013321,2]
[419885357,1775466643899,-6476.04433623,0.00013321,2]
[419885358,1775466643911,-5642.70196642,0.00013321,2]